[Event "*** SCC Grand Prix: Titled Tuesday Blitz"]
[Site "Chess.com"]
[Date "2020.08.11"]
[Round "10"]
[White "Azeryahu"]
[Black "Oleksandr_Bortnyk"]
[Result "1-0"]
[WhiteElo "2802"]
[BlackElo "2963"]
[TimeControl "180+1"]
[EndTime "11:57:50 PDT"]
[Termination "Azeryahu won by resignation"]

1. c4 {[%clk 0:03:00.9]} 1... d6 {[%clk 0:02:50.3]} 2. Nc3 {[%clk 0:03:00.6]}
2... e5 {[%clk 0:02:47.7]} 3. Nf3 {[%clk 0:03:00.7]} 3... f5 {[%clk 0:02:46.6]}
4. g3 {[%clk 0:02:58.3]} 4... Nf6 {[%clk 0:02:45.6]} 5. d4 {[%clk 0:02:58.3]}
5... g6 {[%clk 0:02:46.5]} 6. dxe5 {[%clk 0:02:58]} 6... Ng4 {[%clk 0:02:41.8]}
7. Bg5 {[%clk 0:02:42.8]} 7... Be7 {[%clk 0:02:38.5]} 8. Bxe7 {[%clk 0:02:30.8]}
8... Qxe7 {[%clk 0:02:39.4]} 9. exd6 {[%clk 0:02:04.8]} 9... cxd6 {[%clk
0:02:38.2]} 10. Nb5 {[%clk 0:01:52.8]} 10... O-O {[%clk 0:02:32.6]} 11. Qxd6
{[%clk 0:01:45.5]} 11... Qg7 {[%clk 0:02:32.1]} 12. Qd5+ {[%clk 0:01:35.1]}
12... Kh8 {[%clk 0:02:29.2]} 13. Qd4 {[%clk 0:01:35.7]} 13... Nf6 {[%clk
0:02:26.3]} 14. Bg2 {[%clk 0:01:35.7]} 14... a6 {[%clk 0:02:25.4]} 15. Nd6
{[%clk 0:01:33]} 15... Nc6 {[%clk 0:02:25.5]} 16. Qc3 {[%clk 0:01:32.5]} 16...
f4 {[%clk 0:02:07.1]} 17. O-O {[%clk 0:01:29.1]} 17... Bg4 {[%clk 0:02:04]} 18.
Rad1 {[%clk 0:01:24.2]} 18... fxg3 {[%clk 0:02:02.2]} 19. hxg3 {[%clk
0:01:23.9]} 19... Ne7 {[%clk 0:01:45.2]} 20. Rd4 {[%clk 0:00:53]} 20... b5
{[%clk 0:01:42.7]} 21. Ne5 {[%clk 0:00:40.3]} 21... Bxe2 {[%clk 0:01:40.5]} 22.
Re1 {[%clk 0:00:40.1]} 22... Bxc4 {[%clk 0:01:21.6]} 23. Bxa8 {[%clk 0:00:37.4]}
23... Rxa8 {[%clk 0:01:21]} 24. Nef7+ {[%clk 0:00:17.9]} 24... Bxf7 {[%clk
0:01:02.1]} 25. Rxe7 {[%clk 0:00:17.6]} 25... Rf8 {[%clk 0:01:03]} 26. Rf4
{[%clk 0:00:13.5]} 26... Nd5 {[%clk 0:00:47.2]} 27. Qxg7+ {[%clk 0:00:12.1]}
27... Kxg7 {[%clk 0:00:48.1]} 28. Rfxf7+ {[%clk 0:00:12.3]} 28... Rxf7 {[%clk
0:00:49]} 29. Rxf7+ {[%clk 0:00:13.2]} 29... Kh6 {[%clk 0:00:49.2]} 30. Ra7
{[%clk 0:00:12.3]} 30... Nb4 {[%clk 0:00:49]} 31. a3 {[%clk 0:00:11.7]} 31...
Nd3 {[%clk 0:00:49.6]} 32. Rxa6 {[%clk 0:00:11.7]} 32... b4 {[%clk 0:00:50.2]}
33. axb4 {[%clk 0:00:11.6]} 33... Nxb4 {[%clk 0:00:51.1]} 34. Ra4 {[%clk
0:00:11.4]} 34... Nd3 {[%clk 0:00:51.5]} 35. Rd4 {[%clk 0:00:10.8]} 35... Nxb2
{[%clk 0:00:51.2]} 36. Kf1 {[%clk 0:00:10.7]} 36... Kg5 {[%clk 0:00:51]} 37. Ke1
{[%clk 0:00:10.8]} 37... Kf6 {[%clk 0:00:51.4]} 38. f4 {[%clk 0:00:11]} 38... g5
{[%clk 0:00:51.2]} 39. Kd2 {[%clk 0:00:11]} 39... gxf4 {[%clk 0:00:51.7]} 40.
gxf4 {[%clk 0:00:10]} 40... h5 {[%clk 0:00:51.1]} 41. Kc2 {[%clk 0:00:10.2]}
41... h4 {[%clk 0:00:52]} 42. Kxb2 {[%clk 0:00:10.4]} 42... Kg6 {[%clk
0:00:52.6]} 43. Rd5 {[%clk 0:00:09.6]} 43... Kh6 {[%clk 0:00:52.7]} 44. Rg5
{[%clk 0:00:09.3]} 44... Kh7 {[%clk 0:00:52.8]} 45. Nf5 {[%clk 0:00:08.3]} 45...
h3 {[%clk 0:00:52.9]} 46. Rg3 {[%clk 0:00:07.8]} 46... h2 {[%clk 0:00:52.2]} 47.
Rh3+ {[%clk 0:00:08]} 47... Kg6 {[%clk 0:00:53.1]} 48. Rxh2 {[%clk 0:00:08.1]}
48... Kxf5 {[%clk 0:00:53.5]} 49. Rh1 {[%clk 0:00:08]} 49... Kg4 {[%clk
0:00:54.4]} 50. Ra1 {[%clk 0:00:08]} 50... Kxf4 {[%clk 0:00:55.3]} 51. Kc3
{[%clk 0:00:08.8]} 51... Ke5 {[%clk 0:00:56.2]} 52. Kd3 {[%clk 0:00:09.2]} 52...
Kd5 {[%clk 0:00:57.1]} 53. Ra5+ {[%clk 0:00:09.3]} 53... Kc6 {[%clk 0:00:57.6]}
54. Kc4 {[%clk 0:00:09.6]} 54... Kd6 {[%clk 0:00:58.5]} 55. Rc5 {[%clk
0:00:08.8]} 55... Ke6 {[%clk 0:00:59.4]} 56. Rd5 {[%clk 0:00:09.1]} 56... Ke7
{[%clk 0:00:59.9]} 57. Kd4 {[%clk 0:00:09.1]} 57... Ke6 {[%clk 0:01:00.8]} 58.
Ke4 {[%clk 0:00:09.1]} 58... Kf6 {[%clk 0:01:01.3]} 59. Re5 {[%clk 0:00:09.1]}
1-0

[Event "*** SCC Grand Prix: Titled Tuesday Blitz"]
[Site "Chess.com"]
[Date "2020.08.11"]
[Round "10"]
[White "IANOV0007"]
[Black "Fighter008"]
[Result "0-1"]
[WhiteElo "2499"]
[BlackElo "2689"]
[TimeControl "180+1"]
[EndTime "11:57:57 PDT"]
[Termination "Fighter008 won on time"]

1. Nf3 {[%clk 0:03:00.9]} 1... Nf6 {[%clk 0:02:59.7]} 2. g3 {[%clk 0:02:59.9]}
2... g6 {[%clk 0:02:59.9]} 3. Bg2 {[%clk 0:02:58.8]} 3... Bg7 {[%clk 0:03:00.4]}
4. O-O {[%clk 0:02:58.5]} 4... O-O {[%clk 0:03:00.9]} 5. c4 {[%clk 0:02:55.5]}
5... d6 {[%clk 0:03:00.6]} 6. Nc3 {[%clk 0:02:53.9]} 6... c6 {[%clk 0:03:00.4]}
7. d4 {[%clk 0:02:51.5]} 7... Bf5 {[%clk 0:03:00]} 8. Nh4 {[%clk 0:02:48.3]}
8... Be6 {[%clk 0:02:59.4]} 9. d5 {[%clk 0:02:47.6]} 9... cxd5 {[%clk
0:03:00.3]} 10. cxd5 {[%clk 0:02:47]} 10... Bd7 {[%clk 0:03:00.4]} 11. Nf3
{[%clk 0:02:45.8]} 11... a5 {[%clk 0:03:00.6]} 12. Nd4 {[%clk 0:02:43.4]} 12...
Na6 {[%clk 0:02:59]} 13. h3 {[%clk 0:02:42.6]} 13... Nc5 {[%clk 0:02:58.8]} 14.
Be3 {[%clk 0:02:31.7]} 14... a4 {[%clk 0:02:55.5]} 15. a3 {[%clk 0:02:29.2]}
15... Qa5 {[%clk 0:02:51.2]} 16. Rc1 {[%clk 0:02:27]} 16... Rfc8 {[%clk
0:02:50]} 17. Qd2 {[%clk 0:02:17.7]} 17... Ne8 {[%clk 0:02:43.7]} 18. Rc2 {[%clk
0:02:02.9]} 18... Nc7 {[%clk 0:02:22.8]} 19. Rfc1 {[%clk 0:02:00.3]} 19... Bxd4
{[%clk 0:02:20.8]} 20. Bxd4 {[%clk 0:01:58.3]} 20... Nb3 {[%clk 0:02:20.8]} 21.
Qe3 {[%clk 0:01:45.5]} 21... Nxc1 {[%clk 0:02:06.9]} 22. Rxc1 {[%clk 0:01:44.4]}
22... Re8 {[%clk 0:02:00.8]} 23. Qh6 {[%clk 0:01:40.6]} 23... f6 {[%clk
0:02:00.9]} 24. h4 {[%clk 0:01:38]} 24... Rf8 {[%clk 0:01:36]} 25. h5 {[%clk
0:01:34.6]} 25... Be8 {[%clk 0:01:36.2]} 26. hxg6 {[%clk 0:01:30.4]} 26... Bxg6
{[%clk 0:01:27.6]} 27. e4 {[%clk 0:01:24.8]} 27... Ne8 {[%clk 0:01:25]} 28. Ne2
{[%clk 0:01:17.2]} 28... Ng7 {[%clk 0:01:22.5]} 29. Nf4 {[%clk 0:01:13.2]} 29...
Rfc8 {[%clk 0:01:04.2]} 30. Rxc8+ {[%clk 0:01:08.6]} 30... Rxc8 {[%clk
0:01:03.5]} 31. Nxg6 {[%clk 0:01:04]} 31... hxg6 {[%clk 0:01:04.4]} 32. Qxg6
{[%clk 0:01:03.6]} 32... Qd2 {[%clk 0:01:04.2]} 33. Be3 {[%clk 0:01:01.3]} 33...
Qd1+ {[%clk 0:01:04.1]} 34. Kh2 {[%clk 0:01:00.5]} 34... Qh5+ {[%clk 0:01:04.1]}
35. Qxh5 {[%clk 0:00:58.9]} 35... Nxh5 {[%clk 0:01:05]} 36. Bd4 {[%clk
0:00:45.5]} 36... Rc2 {[%clk 0:01:02.1]} 37. Kg1 {[%clk 0:00:37.4]} 37... Rc1+
{[%clk 0:01:00.6]} 38. Bf1 {[%clk 0:00:30.5]} 38... Ng7 {[%clk 0:01:00.6]} 39.
Kg2 {[%clk 0:00:29]} 39... Ne8 {[%clk 0:01:00.3]} 40. Bc3 {[%clk 0:00:15.1]}
40... Nc7 {[%clk 0:00:58.4]} 41. Be2 {[%clk 0:00:12.3]} 41... Na6 {[%clk
0:00:57.6]} 42. Bxa6 {[%clk 0:00:05.9]} 42... bxa6 {[%clk 0:00:58.5]} 43. Kf3
{[%clk 0:00:05.7]} 43... Kf7 {[%clk 0:00:56.9]} 44. Ke3 {[%clk 0:00:05.3]} 44...
Rc2 {[%clk 0:00:57.3]} 45. g4 {[%clk 0:00:04.4]} 45... e5 {[%clk 0:00:55.2]} 46.
f3 {[%clk 0:00:02.8]} 46... Rh2 {[%clk 0:00:53.7]} 0-1

[Event "*** SCC Grand Prix: Titled Tuesday Blitz"]
[Site "Chess.com"]
[Date "2020.08.11"]
[Round "10"]
[White "Ural_bogatyr"]
[Black "WPWPWP-2015"]
[Result "1-0"]
[WhiteElo "2364"]
[BlackElo "2384"]
[TimeControl "180+1"]
[EndTime "11:57:57 PDT"]
[Termination "Ural_bogatyr won on time"]

1. e4 {[%clk 0:03:00.9]} 1... c5 {[%clk 0:02:57.3]} 2. Nf3 {[%clk 0:03:00.6]}
2... e6 {[%clk 0:02:57.4]} 3. c3 {[%clk 0:03:00.6]} 3... Nf6 {[%clk 0:02:55.1]}
4. e5 {[%clk 0:03:00.8]} 4... Nd5 {[%clk 0:02:55.3]} 5. d4 {[%clk 0:03:01.7]}
5... cxd4 {[%clk 0:02:55.3]} 6. Qxd4 {[%clk 0:03:02.6]} 6... Nc6 {[%clk
0:02:54.7]} 7. Qe4 {[%clk 0:03:03]} 7... d6 {[%clk 0:02:54.5]} 8. Bb5 {[%clk
0:03:03.1]} 8... Bd7 {[%clk 0:02:52.8]} 9. c4 {[%clk 0:03:03.4]} 9... Nc7 {[%clk
0:02:44.6]} 10. Bg5 {[%clk 0:02:58.2]} 10... f6 {[%clk 0:02:40.3]} 11. exf6
{[%clk 0:02:56.4]} 11... gxf6 {[%clk 0:02:39.7]} 12. Bh4 {[%clk 0:02:56.6]}
12... Nxb5 {[%clk 0:02:37.8]} 13. cxb5 {[%clk 0:02:55.6]} 13... Ne5 {[%clk
0:02:30.9]} 14. Nxe5 {[%clk 0:02:47.5]} 14... dxe5 {[%clk 0:02:30.5]} 15. Nc3
{[%clk 0:02:43.4]} 15... Be7 {[%clk 0:02:18.7]} 16. Qxb7 {[%clk 0:02:24.7]}
16... Rb8 {[%clk 0:02:16]} 17. Qxa7 {[%clk 0:02:13.8]} 17... Bxb5 {[%clk
0:02:15.3]} 18. Rd1 {[%clk 0:02:07.7]} 18... Qc8 {[%clk 0:02:13]} 19. Nxb5
{[%clk 0:01:30.1]} 19... Rxb5 {[%clk 0:02:12.1]} 20. O-O {[%clk 0:01:29.2]}
20... Rb7 {[%clk 0:01:50.5]} 21. Qa4+ {[%clk 0:01:27.5]} 21... Kf7 {[%clk
0:01:49.9]} 22. Qg4 {[%clk 0:01:16]} 22... h5 {[%clk 0:01:49]} 23. Qh3 {[%clk
0:01:09.9]} 23... Rxb2 {[%clk 0:01:46.5]} 24. Bg3 {[%clk 0:00:58.5]} 24... h4
{[%clk 0:01:35.6]} 25. Bxh4 {[%clk 0:00:50]} 25... f5 {[%clk 0:01:34.1]} 26. g3
{[%clk 0:00:49.9]} 26... Bxh4 {[%clk 0:00:47.5]} 27. gxh4 {[%clk 0:00:49]} 27...
Rg8+ {[%clk 0:00:46.9]} 28. Kh1 {[%clk 0:00:48.5]} 28... Qc6+ {[%clk 0:00:45.6]}
29. f3 {[%clk 0:00:48.1]} 29... e4 {[%clk 0:00:42.7]} 30. h5 {[%clk 0:00:30.8]}
30... Qc2 {[%clk 0:00:34.9]} 31. Rg1 {[%clk 0:00:19.6]} 31... exf3 {[%clk
0:00:30.6]} 32. h6 {[%clk 0:00:16.7]} 32... Rg2 {[%clk 0:00:18.5]} 33. Qh5+
{[%clk 0:00:15.4]} 33... Kf6 {[%clk 0:00:16.8]} 34. Qh4+ {[%clk 0:00:12.9]}
34... Kg6 {[%clk 0:00:16.8]} 35. h7 {[%clk 0:00:11.3]} 35... Rg4 {[%clk
0:00:02.3]} 36. h8=Q {[%clk 0:00:09.3]} 1-0

[Event "*** SCC Grand Prix: Titled Tuesday Blitz"]
[Site "Chess.com"]
[Date "2020.08.11"]
[Round "10"]
[White "Fins0905"]
[Black "abhidabhi"]
[Result "0-1"]
[WhiteElo "2645"]
[BlackElo "2788"]
[TimeControl "180+1"]
[EndTime "11:57:59 PDT"]
[Termination "abhidabhi won on time"]

1. d4 {[%clk 0:03:00.9]} 1... Nf6 {[%clk 0:02:59.9]} 2. c4 {[%clk 0:02:59.4]}
2... g6 {[%clk 0:02:57.2]} 3. Nc3 {[%clk 0:02:59.1]} 3... d5 {[%clk 0:02:57.2]}
4. Bg5 {[%clk 0:02:56.8]} 4... Bg7 {[%clk 0:02:56.1]} 5. e3 {[%clk 0:02:55.3]}
5... Ne4 {[%clk 0:02:50.7]} 6. Nxe4 {[%clk 0:02:47.1]} 6... dxe4 {[%clk
0:02:50.6]} 7. Qd2 {[%clk 0:02:46.1]} 7... c5 {[%clk 0:02:46.9]} 8. d5 {[%clk
0:02:37.9]} 8... O-O {[%clk 0:02:46.6]} 9. Ne2 {[%clk 0:02:37.5]} 9... Nd7
{[%clk 0:02:36.2]} 10. Nc3 {[%clk 0:02:34.5]} 10... f5 {[%clk 0:02:35.9]} 11.
Be2 {[%clk 0:02:25.5]} 11... h6 {[%clk 0:02:33.9]} 12. Bh4 {[%clk 0:02:25]}
12... Ne5 {[%clk 0:02:30.1]} 13. O-O-O {[%clk 0:02:05.9]} 13... a6 {[%clk
0:02:20.5]} 14. f4 {[%clk 0:01:48]} 14... exf3 {[%clk 0:02:17.4]} 15. gxf3
{[%clk 0:01:48.9]} 15... b5 {[%clk 0:02:11.4]} 16. f4 {[%clk 0:01:46.7]} 16...
Nxc4 {[%clk 0:02:06.2]} 17. Bxc4 {[%clk 0:01:46.3]} 17... bxc4 {[%clk
0:02:06.3]} 18. d6 {[%clk 0:01:28]} 18... Qxd6 {[%clk 0:01:57.7]} 19. Qg2 {[%clk
0:01:14.1]} 19... Qb6 {[%clk 0:01:27.1]} 20. Rhg1 {[%clk 0:00:33.8]} 20... Rb8
{[%clk 0:01:22.6]} 21. Nd5 {[%clk 0:00:26]} 21... Qxb2+ {[%clk 0:01:13.8]} 22.
Qxb2 {[%clk 0:00:25.5]} 22... Bxb2+ {[%clk 0:01:14.4]} 23. Kc2 {[%clk
0:00:25.9]} 23... Kf7 {[%clk 0:00:59.4]} 24. Bxe7 {[%clk 0:00:18.9]} 24... Bd7
{[%clk 0:00:50]} 25. Bxf8 {[%clk 0:00:12.4]} 25... Ba4+ {[%clk 0:00:49.9]} 26.
Kd2 {[%clk 0:00:12.9]} 26... Rd8 {[%clk 0:00:32.8]} 27. Bxc5 {[%clk 0:00:03.6]}
27... Rxd5+ {[%clk 0:00:31]} 28. Bd4 {[%clk 0:00:03.3]} 28... Bxd4 {[%clk
0:00:31.2]} 29. Ke2 {[%clk 0:00:03]} 29... Bxd1+ {[%clk 0:00:27.1]} 30. Rxd1
{[%clk 0:00:02.7]} 30... Ke6 {[%clk 0:00:26.9]} 31. exd4 {[%clk 0:00:03.2]}
31... Ra5 {[%clk 0:00:27.1]} 32. Rd2 {[%clk 0:00:03.2]} 32... Kd5 {[%clk
0:00:26.9]} 33. Rb2 {[%clk 0:00:03.4]} 33... Kxd4 {[%clk 0:00:27]} 34. Rb6
{[%clk 0:00:03.2]} 34... Rxa2+ {[%clk 0:00:26.7]} 35. Kf3 {[%clk 0:00:03.7]}
35... c3 {[%clk 0:00:24.6]} 36. Rd6+ {[%clk 0:00:03.7]} 36... Kc4 {[%clk
0:00:21.5]} 37. Rxg6 {[%clk 0:00:04.1]} 37... c2 {[%clk 0:00:20.3]} 38. Rxh6
{[%clk 0:00:03.6]} 38... Ra5 {[%clk 0:00:20.3]} 39. Rc6+ {[%clk 0:00:02.4]}
39... Rc5 {[%clk 0:00:20.5]} 0-1

[Event "*** SCC Grand Prix: Titled Tuesday Blitz"]
[Site "Chess.com"]
[Date "2020.08.11"]
[Round "10"]
[White "GregShahade"]
[Black "gurelediz"]
[Result "1-0"]
[WhiteElo "2715"]
[BlackElo "2548"]
[TimeControl "180+1"]
[EndTime "11:57:59 PDT"]
[Termination "GregShahade won by resignation"]

1. e4 {[%clk 0:03:00.9]} 1... c5 {[%clk 0:02:59.4]} 2. Nf3 {[%clk 0:03:00.7]}
2... d6 {[%clk 0:03:00.1]} 3. d4 {[%clk 0:03:01.2]} 3... cxd4 {[%clk 0:03:01]}
4. Nxd4 {[%clk 0:03:01.8]} 4... Nf6 {[%clk 0:03:01.6]} 5. Nc3 {[%clk 0:03:02.3]}
5... a6 {[%clk 0:03:02.2]} 6. Be3 {[%clk 0:03:02.4]} 6... e5 {[%clk 0:03:01.6]}
7. Nb3 {[%clk 0:03:02.7]} 7... Be6 {[%clk 0:03:01.7]} 8. f3 {[%clk 0:03:03.2]}
8... Be7 {[%clk 0:03:01.1]} 9. Qd2 {[%clk 0:03:02.7]} 9... O-O {[%clk
0:03:00.1]} 10. O-O-O {[%clk 0:03:02.8]} 10... Qc7 {[%clk 0:02:58.3]} 11. g4
{[%clk 0:03:01.8]} 11... Rc8 {[%clk 0:02:58.5]} 12. Kb1 {[%clk 0:03:01.6]} 12...
b5 {[%clk 0:02:54.2]} 13. g5 {[%clk 0:02:57]} 13... Nfd7 {[%clk 0:02:53.4]} 14.
h4 {[%clk 0:02:55.3]} 14... b4 {[%clk 0:02:51]} 15. Nd5 {[%clk 0:02:54.9]} 15...
Bxd5 {[%clk 0:02:50.1]} 16. exd5 {[%clk 0:02:55.8]} 16... a5 {[%clk 0:02:49.9]}
17. h5 {[%clk 0:02:44.6]} 17... a4 {[%clk 0:02:49.2]} 18. Nc1 {[%clk 0:02:44.6]}
18... Na6 {[%clk 0:02:35.7]} 19. g6 {[%clk 0:02:40.8]} 19... Nac5 {[%clk
0:02:20.9]} 20. gxf7+ {[%clk 0:02:29.3]} 20... Kh8 {[%clk 0:02:00.3]} 21. Nd3
{[%clk 0:02:29]} 21... b3 {[%clk 0:01:35.3]} 22. cxb3 {[%clk 0:02:26.6]} 22...
axb3 {[%clk 0:01:22.4]} 23. a3 {[%clk 0:02:19]} 23... Na4 {[%clk 0:01:18.9]} 24.
Nb4 {[%clk 0:02:07.4]} 24... e4 {[%clk 0:00:54]} 25. fxe4 {[%clk 0:01:45.6]}
25... Bf6 {[%clk 0:00:52.4]} 26. Bd4 {[%clk 0:01:37.8]} 26... Bxd4 {[%clk
0:00:48.2]} 27. Qxd4 {[%clk 0:01:37.7]} 27... Ne5 {[%clk 0:00:29.4]} 28. h6
{[%clk 0:01:31.3]} 28... g6 {[%clk 0:00:25]} 29. Nc6 {[%clk 0:01:31.3]} 29...
Nc5 {[%clk 0:00:18.4]} 30. Bh3 {[%clk 0:01:24.2]} 30... Rf8 {[%clk 0:00:16.7]}
31. Rc1 {[%clk 0:01:13.8]} 31... Ra4 {[%clk 0:00:15.6]} 32. Nb4 {[%clk
0:00:54.2]} 32... Rxf7 {[%clk 0:00:13.5]} 33. Rhf1 {[%clk 0:00:36.4]} 33... Rxf1
{[%clk 0:00:08.7]} 34. Rxf1 {[%clk 0:00:37.3]} 34... Ra8 {[%clk 0:00:08.5]} 35.
Nc6 {[%clk 0:00:34.4]} 35... Nd3 {[%clk 0:00:06.6]} 36. Be6 {[%clk 0:00:27.2]}
36... g5 {[%clk 0:00:02.4]} 37. Qc3 {[%clk 0:00:24.6]} 37... Nf4 {[%clk
0:00:02.5]} 38. Nxe5 {[%clk 0:00:23.1]} 38... Qxc3 {[%clk 0:00:02.5]} 39. Nf7+
{[%clk 0:00:21.9]} 39... Kg8 {[%clk 0:00:02.9]} 40. bxc3 {[%clk 0:00:22.1]}
40... Nxe6 {[%clk 0:00:02.3]} 41. dxe6 {[%clk 0:00:23]} 41... Rxa3 {[%clk
0:00:02.2]} 42. Kb2 {[%clk 0:00:22.6]} 42... Ra2+ {[%clk 0:00:02.3]} 43. Kxb3
{[%clk 0:00:22.7]} 43... Re2 {[%clk 0:00:03.2]} 44. Nxg5 {[%clk 0:00:22.4]}
44... Rg2 {[%clk 0:00:03]} 45. e7 {[%clk 0:00:22.6]} 1-0

[Event "*** SCC Grand Prix: Titled Tuesday Blitz"]
[Site "Chess.com"]
[Date "2020.08.11"]
[Round "10"]
[White "DonBroca"]
[Black "Azoulas1"]
[Result "0-1"]
[WhiteElo "2086"]
[BlackElo "2009"]
[TimeControl "180+1"]
[EndTime "11:57:59 PDT"]
[Termination "Azoulas1 won on time"]

1. e4 {[%clk 0:03:00.9]} 1... e5 {[%clk 0:02:58.2]} 2. Nf3 {[%clk 0:02:58]} 2...
Nc6 {[%clk 0:02:56.3]} 3. Bb5 {[%clk 0:02:57.9]} 3... a6 {[%clk 0:02:54.7]} 4.
Ba4 {[%clk 0:02:57.2]} 4... Nf6 {[%clk 0:02:52.9]} 5. O-O {[%clk 0:02:56.7]}
5... b5 {[%clk 0:02:44.1]} 6. Bb3 {[%clk 0:02:55.9]} 6... Be7 {[%clk 0:02:43.6]}
7. c3 {[%clk 0:02:55.6]} 7... O-O {[%clk 0:02:42.3]} 8. Re1 {[%clk 0:02:53.9]}
8... d6 {[%clk 0:02:41]} 9. h3 {[%clk 0:02:53.4]} 9... Bb7 {[%clk 0:02:38.9]}
10. d4 {[%clk 0:02:53]} 10... h6 {[%clk 0:02:28]} 11. Nbd2 {[%clk 0:02:50.4]}
11... Re8 {[%clk 0:02:22.3]} 12. Nf1 {[%clk 0:02:49.4]} 12... Bf8 {[%clk
0:02:19.8]} 13. Ng3 {[%clk 0:02:46.6]} 13... g6 {[%clk 0:02:16.1]} 14. d5 {[%clk
0:02:45.1]} 14... Nb8 {[%clk 0:02:13]} 15. Be3 {[%clk 0:02:43.2]} 15... Bg7
{[%clk 0:02:11.5]} 16. Qd2 {[%clk 0:02:42.4]} 16... Kh7 {[%clk 0:02:09.1]} 17.
Rad1 {[%clk 0:02:24.1]} 17... Nbd7 {[%clk 0:02:04.1]} 18. Bc2 {[%clk 0:02:21.9]}
18... Nb6 {[%clk 0:01:59]} 19. b3 {[%clk 0:02:13.8]} 19... Nbd7 {[%clk 0:01:49]}
20. Qc1 {[%clk 0:02:04]} 20... Qe7 {[%clk 0:01:43.3]} 21. Nd2 {[%clk 0:02:00.2]}
21... c5 {[%clk 0:01:40.8]} 22. f4 {[%clk 0:01:57.9]} 22... exf4 {[%clk
0:01:32.8]} 23. Bxf4 {[%clk 0:01:58.8]} 23... Ne5 {[%clk 0:01:32]} 24. Nf3
{[%clk 0:01:46]} 24... Nxf3+ {[%clk 0:01:28.3]} 25. gxf3 {[%clk 0:01:46.9]}
25... Nd7 {[%clk 0:01:27.1]} 26. Kf2 {[%clk 0:01:26.7]} 26... Ne5 {[%clk
0:01:24.8]} 27. Rg1 {[%clk 0:01:20.1]} 27... Qh4 {[%clk 0:01:21.8]} 28. Rh1
{[%clk 0:00:48.8]} 28... c4 {[%clk 0:01:19]} 29. b4 {[%clk 0:00:45.5]} 29...
Rac8 {[%clk 0:01:15.9]} 30. Rdg1 {[%clk 0:00:42.3]} 30... Nd3+ {[%clk
0:01:13.6]} 31. Bxd3 {[%clk 0:00:40.9]} 31... cxd3 {[%clk 0:01:12.2]} 32. Bd2
{[%clk 0:00:15.2]} 32... f5 {[%clk 0:01:09.4]} 33. exf5 {[%clk 0:00:12.1]} 33...
gxf5 {[%clk 0:01:06.6]} 34. Kf1 {[%clk 0:00:12.4]} 34... Re2 {[%clk 0:00:56.4]}
35. Nxe2 {[%clk 0:00:06.6]} 35... dxe2+ {[%clk 0:00:54.9]} 36. Kxe2 {[%clk
0:00:07]} 36... Bxd5 {[%clk 0:00:53.9]} 37. Rg2 {[%clk 0:00:04.3]} 37... Qc4+
{[%clk 0:00:50]} 38. Kf2 {[%clk 0:00:03.5]} 38... Qh4+ {[%clk 0:00:44.6]} 39.
Ke2 {[%clk 0:00:03.4]} 39... Re8+ {[%clk 0:00:41.8]} 40. Kd1 {[%clk 0:00:03.1]}
40... Bxf3+ {[%clk 0:00:39.5]} 41. Kc2 {[%clk 0:00:03.1]} 41... Bxg2 {[%clk
0:00:37.7]} 42. Rg1 {[%clk 0:00:03.5]} 42... Be4+ {[%clk 0:00:34]} 43. Kb2
{[%clk 0:00:03]} 43... Qxh3 {[%clk 0:00:30.4]} 44. Qd1 {[%clk 0:00:01.3]} 44...
Qd3 {[%clk 0:00:28]} 0-1

[Event "*** SCC Grand Prix: Titled Tuesday Blitz"]
[Site "Chess.com"]
[Date "2020.08.11"]
[Round "10"]
[White "mjray79"]
[Black "Dinamo81"]
[Result "0-1"]
[WhiteElo "2351"]
[BlackElo "2610"]
[TimeControl "180+1"]
[EndTime "11:58:00 PDT"]
[Termination "Dinamo81 won by resignation"]

1. d4 {[%clk 0:03:00.9]} 1... d5 {[%clk 0:02:59.1]} 2. c4 {[%clk 0:02:59.8]}
2... e6 {[%clk 0:02:58.5]} 3. Nf3 {[%clk 0:02:59.2]} 3... a6 {[%clk 0:02:58]} 4.
g3 {[%clk 0:02:58.1]} 4... dxc4 {[%clk 0:02:42.6]} 5. Bg2 {[%clk 0:02:57]} 5...
Nc6 {[%clk 0:02:42.6]} 6. a4 {[%clk 0:02:55.7]} 6... Rb8 {[%clk 0:02:34]} 7. O-O
{[%clk 0:02:49.4]} 7... b5 {[%clk 0:02:29.6]} 8. axb5 {[%clk 0:02:47.9]} 8...
axb5 {[%clk 0:02:29]} 9. b3 {[%clk 0:02:47.8]} 9... cxb3 {[%clk 0:02:21.7]} 10.
Qxb3 {[%clk 0:02:48.1]} 10... Nf6 {[%clk 0:02:15.5]} 11. Rd1 {[%clk 0:02:45.7]}
11... Nb4 {[%clk 0:01:56]} 12. Ne5 {[%clk 0:02:37.2]} 12... Bb7 {[%clk
0:01:37.9]} 13. Bxb7 {[%clk 0:02:14.9]} 13... Rxb7 {[%clk 0:01:38.8]} 14. Ba3
{[%clk 0:02:14.5]} 14... Nbd5 {[%clk 0:01:16.4]} 15. Bxf8 {[%clk 0:02:11.2]}
15... Kxf8 {[%clk 0:01:17.3]} 16. Nc3 {[%clk 0:02:02.8]} 16... Kg8 {[%clk
0:01:09.4]} 17. Nxb5 {[%clk 0:01:54.9]} 17... h5 {[%clk 0:00:59.8]} 18. h4
{[%clk 0:01:35.3]} 18... Ng4 {[%clk 0:00:51.2]} 19. Qd3 {[%clk 0:01:16.6]} 19...
Rh6 {[%clk 0:00:28.8]} 20. Nc6 {[%clk 0:01:05]} 20... Qe8 {[%clk 0:00:28]} 21.
Rdc1 {[%clk 0:00:51.4]} 21... Rf6 {[%clk 0:00:27.1]} 22. f3 {[%clk 0:00:44.3]}
22... Nge3 {[%clk 0:00:27]} 23. Na3 {[%clk 0:00:35.9]} 23... Rg6 {[%clk
0:00:23.8]} 24. Kf2 {[%clk 0:00:35]} 24... Qf8 {[%clk 0:00:16.5]} 25. Ne5 {[%clk
0:00:30.3]} 25... Rf6 {[%clk 0:00:12.5]} 26. Nd7 {[%clk 0:00:29.4]} 26... Qe7
{[%clk 0:00:12.4]} 27. Nxf6+ {[%clk 0:00:29.4]} 27... Qxf6 {[%clk 0:00:13.3]}
28. Nc4 {[%clk 0:00:29.2]} 28... Nf5 {[%clk 0:00:11.9]} 29. Ne5 {[%clk
0:00:25.7]} 29... g6 {[%clk 0:00:10.3]} 30. Ra6 {[%clk 0:00:22.5]} 30... Nb4
{[%clk 0:00:09.4]} 31. Ra8+ {[%clk 0:00:22.5]} 31... Kg7 {[%clk 0:00:09.8]} 32.
Qe4 {[%clk 0:00:22.6]} 32... Nd6 {[%clk 0:00:08.9]} 33. Qb1 {[%clk 0:00:20.9]}
33... Nd5 {[%clk 0:00:08.1]} 34. Qc2 {[%clk 0:00:18.4]} 34... Qe7 {[%clk
0:00:05]} 35. Nc6 {[%clk 0:00:17.2]} 35... Qf6 {[%clk 0:00:04.7]} 36. Kg2 {[%clk
0:00:17.4]} 36... Ne3+ {[%clk 0:00:04]} 37. Kf2 {[%clk 0:00:17.7]} 37... Nxc2
{[%clk 0:00:04.2]} 38. Rxc2 {[%clk 0:00:18.6]} 38... Rb6 {[%clk 0:00:04.4]} 39.
Ra7 {[%clk 0:00:16.3]} 39... Nb5 {[%clk 0:00:04.6]} 40. Ra8 {[%clk 0:00:16.1]}
40... Nxd4 {[%clk 0:00:05.1]} 41. Nd8 {[%clk 0:00:15.8]} 41... Nxc2 {[%clk
0:00:04.1]} 0-1